Cogmind - Beta 14 @@@ ROGUE MODE // 2024.10.23 @ 20:05:00 Player: Mutetourette Result: Destroyed by V0-SNU(g) with Salvaging Laser Performance ------------- Evolutions (0) 0 Regions Visited (5) 1000 Robots Destroyed (29) 145 Value Destroyed (554) 554 Prototype IDs (3) 60 Alien Tech Used (0) 0 Bonus (300) 300 TOTAL SCORE: 2059 Bonus ------- Registered with UFD 300 Cogmind --------- Core Integrity 0/250 Matter 260/300 Energy 64/100 System Corruption 0% Temperature Cool (12) Movement Treading (400) Ox3 Location -9/Scraptown Parts ------- > --- POWER (1) -------- (None) > --- PROPULSION (2) --- Light Treads Light Treads > --- UTILITY (2) ------ Cargo Storage Unit > --- WEAPON (2) ------- Companion Sword > --- INVENTORY (30) --- Improved Ion Engine Light Nuclear Core Light Treads Light Treads Titanium Leg Titanium Leg Improved Carbon-fiber Leg Advanced Heat Sink Disposable Heat Sink Small Storage Unit Subdweller Optics Core Shielding Improved Medium Armor Plating Hardlight Generator Riot Gun Beam Rifle Light Assault Rifle Barrage Gun Light Cannon Battle Cannon Battle Cannon Rocket Launcher Rocket Launcher CPS Tube (2) CPS Tube (2) Heavy Flail Axe Peak State ------------ > --- POWER ------------ Ion Engine > --- PROPULSION ------- Light Treads Light Treads > --- UTILITY ---------- Cargo Storage Unit > --- WEAPON ----------- Junk Cannon > --- INVENTORY -------- Improved Ion Engine Light Nuclear Core Light Treads Light Treads Titanium Leg Titanium Leg Improved Carbon-fiber Leg Advanced Heat Sink Disposable Heat Sink Small Storage Unit Subdweller Optics Core Shielding Improved Medium Armor Plating Hardlight Generator Riot Gun Beam Rifle Light Assault Rifle Barrage Gun Light Cannon Battle Cannon Battle Cannon Rocket Launcher Rocket Launcher CPS Tube CPS Tube Heavy Flail Axe Companion Sword [Rating: 24] Favorites ----------- Power Ion Engine Engine Ion Engine Propulsion Light Treads Treads Light Treads Leg Aluminum Leg Utility Cargo Storage Unit Device Improved Terrain Scanner Storage Cargo Storage Unit Processor Transport Network Coupler Protection Core Shielding Weapon Field Laser Energy Gun Field Laser Ballistic Gun Barrage Gun Ballistic Cannon Battle Cannon Launcher Rocket Launcher Special Weapon Junk Cannon Slashing Weapon Companion Sword Build | -11 -10 -10 -10 -9 -9 ------- Run | Yrd Mat Min Sub Rec Scr Slots Evolved . | . . . . . . Power . | . . . . . . Propulsion . | . . . . . . Utility . | . . . . . . Weapon . | . . . . . . Parts Attached 30 | 7 3 11 3 2 4 Power 4 | 1 1 1 1 . . Engine 4 | 1 1 1 1 . . Core . | . . . . . . Reactor . | . . . . . . Propulsion 4 | 2 . 2 . . . Treads 2 | . . 2 . . . Leg 2 | 2 . . . . . Wheel . | . . . . . . Hover . | . . . . . . Flight . | . . . . . . Utility 11 | 2 2 5 1 1 . Device 3 | 1 . 2 . . . Storage 6 | 1 1 2 1 1 . Processor 1 | . 1 . . . . Hackware . | . . . . . . Protection 1 | . . 1 . . . Artifact . | . . . . . . Weapon 11 | 2 . 3 1 1 4 Energy Gun 4 | 2 . 2 . . . Energy Cannon . | . . . . . . Ballistic Gun 2 | . . 1 1 . . Ballistic Cannon 1 | . . . . . 1 Launcher 1 | . . . . 1 . Special Weapon 1 | . . . . . 1 Impact Weapon . | . . . . . . Slashing Weapon 2 | . . . . . 2 Piercing Weapon . | . . . . . . Special Melee Weapon . | . . . . . . Unidentified Prototypes 2 | . . . . . 2 Parts Lost 2 | . . 1 1 . . Power 1 | . . . 1 . . Propulsion . | . . . . . . Utility . | . . . . . . Weapon 1 | . . 1 . . . Highest Loss Streak 1 | . . 1 1 . . To Critical Strikes . | . . . . . . Average Slot Usage (%) 91 | . 100 99 96 96 84 Engine 14 | . 14 14 14 14 14 Treads 26 | . . 27 28 28 28 Leg 1 | . 28 . . . . Storage 14 | . 14 14 14 14 14 Protection 5 | . . 11 14 10 . Energy Gun 14 | . 28 19 14 14 12 Ballistic Gun 5 | . . 8 10 12 . Launcher 6 | . . . . 1 12 Peak Build Rating 24 | 9 10 15 14 16 24 Average Rating 14 | 4 8 12 12 14 15 On Entrance 9 | . 9 8 13 14 15 Naked Turns . | . . . . . . Heaviest Build 159 | 12 17 46 52 152 159 Greatest Support 40 | 20 20 40 40 40 40 Greatest Overweight (x) 3 | . . 1 1 3 3 Average Overweight (x) 1 | . . . . 1 3 Largest Inventory Capacity 30 | 8 10 20 20 30 30 Average Capacity 22 | 7 9 10 16 22 30 Most Carried 30 | 7 10 10 18 26 30 Average Carried 20 | 5 8 9 13 20 27 Final Capacity 30 | 8 10 10 20 30 30 Final Carried 27 | 6 10 10 18 26 27 Class Distribution -------------------- 54% | Hauler-Mutant 45% | Mutant Dominant Class ---------------- Mutant | -10/Materials Mutant | -10/Mines Mutant | -10/Subcaves Mutant | -9/Recycling Hauler-Mutant | -9/Scraptown Resources | -11 -10 -10 -10 -9 -9 ----------- Run | Yrd Mat Min Sub Rec Scr Matter Collected 527 | 241 49 138 56 22 21 Remotely . | . . . . . . Salvage Created 1205 | 119 137 158 113 455 223 Parts 59 | 4 9 11 10 16 9 Haulers Intercepted 1 | . 1 . . . . Recyclers Shooed 2 | . 1 . . 1 . Parts Field Recycled . | . . . . . . Retrieved Matter . | . . . . . . Parts Self-Destructed 7 | . . . 7 . . Prevented . | . . . . . . Kills | -11 -10 -10 -10 -9 -9 ------- Run | Yrd Mat Min Sub Rec Scr Combat Hostiles Destroyed 18 | . 3 7 3 1 4 Guns 14 | . 3 7 3 1 . Cannons 1 | . . . . . 1 Classes Destroyed 13 | 2 3 2 1 1 4 Builder 1 | . . 1 . . . Tunneler 2 | 2 . . . . . Hauler 1 | . 1 . . . . Recycler 6 | 1 . . . 5 . Watcher 1 | . 1 . . . . Swarmer 8 | . 3 5 . . . Grunt 2 | . . 2 . . . Sentry 1 | . . . . 1 . Subdweller 3 | . . . 3 . . Bolteater 1 | . . . . . 1 Guru 1 | . . . . . 1 Scrapper 1 | . . . . . 1 Elite 1 | . . . . . 1 Best Kill Streak 4 | 3 3 3 2 4 4 Combat Bots Only 4 | . 3 3 2 1 4 Max Kills in Single Turn 1 | 1 1 1 1 1 1 Gunslinging . | . . . . . . Exploded . | . . . . . . Melee . | . . . . . . Uniques/NPCs Destroyed . | . . . . . . Combat | -11 -10 -10 -10 -9 -9 -------- Run | Yrd Mat Min Sub Rec Scr Hostile Shots Fired 147 | . 18 38 10 2 79 Missed 39 | . 4 7 2 . 26 Damage Taken 1091 | . 132 355 165 33 406 Core 254 | . 38 83 35 . 98 Absorbed by Shields . | . . . . . . Redirected to Shielding 15 | . . 8 7 . . Core Remaining (%) 100 | 100 . . . . . Volleys Fired 63 | 8 11 16 10 9 9 Largest 2 | 2 2 2 2 2 1 Hottest 113 | 90 90 113 91 91 . Shots Fired 110 | 16 22 32 20 11 9 Gun 100 | 16 22 32 20 10 . Cannon . | . . . . . . Launcher 1 | . . . . 1 . Special 9 | . . . . . 9 Kinetic 18 | . . 6 10 2 . Thermal 82 | 16 22 26 10 8 . Explosive 1 | . . . . 1 . Electromagnetic . | . . . . . . Impact 9 | . . . . . 9 Robot Hit Streak 15 | 4 9 11 8 10 15 Robot Miss Streak 3 | 2 3 3 1 1 . Penetration Max . | . . . . . . Secondary Targets 3 | . . 3 . . . Max Gunslinging Chain 1 | . . 1 . . . Shots Hit Robots 69 | 8 14 18 10 9 10 Core Hits 33 | 4 6 9 6 7 1 Critical Kills . | . . . . . . Critical Parts Destroyed . | . . . . . . Critical Strikes 5 | 2 1 1 . 1 . Burn 5 | 2 1 1 . 1 . Melee Attacks 2 | . . . . . 2 Impact . | . . . . . . Slashing 2 | . . . . . 2 Piercing . | . . . . . . Sneak Attacks . | . . . . . . Combat Hostiles . | . . . . . . Follow-up Attacks . | . . . . . . Damage Inflicted 1564 | 117 175 274 147 151 700 Guns 843 | 117 175 253 147 151 . Cannons . | . . . . . . Explosions . | . . . . . . Melee 79 | . . . . . 79 Ramming 21 | . . 21 . . . Kinetic 120 | . . 45 63 12 . Thermal 723 | 117 175 208 84 139 . Explosive . | . . . . . . Electromagnetic . | . . . . . . Impact 621 | . . . . . 621 Slashing 79 | . . . . . 79 Piercing . | . . . . . . Highest Corruption . | . . . . . . Average Corruption . | . . . . . . Corruption Purged . | . . . . . . Corruption Blocked . | . . . . . . Overload Shots . | . . . . . . Overflow Damage 238 | . . . . . 238 Projectiles 237 | . . . . . 237 Explosions . | . . . . . . Melee 1 | . . . . . 1 Knockbacks 5 | . . 1 . . 4 Impact 5 | . . 1 . . 4 Kinetic . | . . . . . . Secondary . | . . . . . . Self-Inflicted Damage . | . . . . . . Shots . | . . . . . . Rammed 1 | . . 1 . . . Targets Rammed 2 | . . 2 . . . Kicked . | . . . . . . Crushed 1 | . . 1 . . . Highest Temperature 261 | 90 180 261 10 89 . Average Temperature 66 | 35 62 98 7 31 . Received Heat Transfer 195 | . . 72 42 9 72 Siege Activations . | . . . . . . Robots Corrupted 3 | . . . . . 3 Combat Hostiles 3 | . . . . . 3 Parts Fried 3 | . . . . . 3 Impact Corruptions 7 | . . . . . 7 Robots Melted . | . . . . . . Combat Hostiles . | . . . . . . Parts Melted 11 | 1 4 3 2 1 . Heat Transferred 2150 | 458 545 592 185 370 . Parts Sabotaged . | . . . . . . Parts Stolen 1 | . . . . . 1 Parts Stripped . | . . . . . . Power Chain Reactions . | . . . . . . Alert | -11 -10 -10 -10 -9 -9 ------- Run | Yrd Mat Min Sub Rec Scr Peak Influence 142 | 15 142 120 . 57 . Initial 55 | . 9 55 . . . Average 26 | 5 37 45 . 11 . Maximum Alert Level . | . . . . . . Low Security (%) 100 | 100 100 100 . 100 . Level 1 . | . . . . . . Level 2 . | . . . . . . Level 3 . | . . . . . . Level 4 . | . . . . . . Level 5 . | . . . . . . High Security . | . . . . . . Max Security . | . . . . . . Squads Dispatched 1 | . 1 . . . . Investigation . | . . . . . . Extermination . | . . . . . . Reinforcement 1 | . 1 . . . . Assault . | . . . . . . Garrison . | . . . . . . Intercept . | . . . . . . Searches Triggered . | . . . . . . Construction Impeded . | . . . . . . Haulers Reinforced . | . . . . . . Active Scanning Responses . | . . . . . . Cargo Convoy Interrupts . | . . . . . . Stealth | -11 -10 -10 -10 -9 -9 --------- Run | Yrd Mat Min Sub Rec Scr Distress Signals 1 | . 1 . . . . Communications Jammed . | . . . . . . Distress Signals . | . . . . . . Times Spotted 27 | . 6 9 3 1 8 Peak Tracking Total 6 | . 6 3 2 . 5 Tactical Retreats 2 | . 1 1 . . . Traps | -11 -10 -10 -10 -9 -9 ------- Run | Yrd Mat Min Sub Rec Scr Traps Triggered 3 | . 1 2 . . . Indirectly . | . . . . . . Trap Hack Attempts . | . . . . . . Triggered . | . . . . . . Disarmed . | . . . . . . Reprogrammed . | . . . . . . Reused . | . . . . . . Traps Extracted . | . . . . . . Installed . | . . . . . . Triggered . | . . . . . . Machines | -11 -10 -10 -10 -9 -9 ---------- Run | Yrd Mat Min Sub Rec Scr Machines Disabled . | . . . . . . Max in Single Turn . | . . . . . . Machines Repaired . | . . . . . . Machines Dismantled . | . . . . . . Machines Sabotaged . | . . . . . . Overloaded Fab Kills . | . . . . . . Hacking | -11 -10 -10 -10 -9 -9 --------- Run | Yrd Mat Min Sub Rec Scr Machines Accessed 11 | . 2 1 . 7 1 Terminals 8 | . 2 . . 6 . Fabricators . | . . . . . . Repair Stations . | . . . . . . Recycling Units . | . . . . . . Scanalyzers . | . . . . . . Garrison Access . | . . . . . . Total Hacks 49 | . 11 1 . 35 2 Successful 35 | . 3 1 . 29 2 Failed 14 | . 8 . . 6 . Catastrophic 2 | . 1 . . 1 . Database Lockouts . | . . . . . . Manual 17 | . 7 . . 10 . Terminals 27 | . 11 . . 16 . Fabricators . | . . . . . . Repair Stations . | . . . . . . Recycling Units . | . . . . . . Scanalyzers . | . . . . . . Garrison Access . | . . . . . . Terminal Hacks 28 | . 1 1 . 24 2 Record 20 | . . . . 19 1 Part Schematic 2 | . . . . 2 . Robot Analysis 1 | . . . . 1 . Open Door 2 | . . 1 . . 1 Terminal Index 2 | . 1 . . 1 . Zone Layout 1 | . . . . 1 . Fabricator Hacks . | . . . . . . Repair Station Hacks . | . . . . . . Recycling Unit Hacks . | . . . . . . Scanalyzer . | . . . . . . Garrison Access Hacks . | . . . . . . Unauthorized Hacks 7 | . 2 . . 5 . Terminals 7 | . 2 . . 5 . Botnet 7 | . 2 . . 5 . Fabricators . | . . . . . . Repair Stations . | . . . . . . Recycling Units . | . . . . . . Scanalyzers . | . . . . . . Garrison Access . | . . . . . . Data Cores Recovered . | . . . . . . Used . | . . . . . . Hacking Detections 6 | . 2 . . 4 . Full Trace Events . | . . . . . . Feedback Events . | . . . . . . Feedback Blocked . | . . . . . . Robot Schematics Acquired . | . . . . . . Robots Built . | . . . . . . Authchips . | . . . . . . Time . | . . . . . . Total Robot Build Rating . | . . . . . . Part Schematics Acquired 2 | . . . . 2 . Parts Built . | . . . . . . Authchips . | . . . . . . Time . | . . . . . . Total Part Build Rating . | . . . . . . Parts Repaired . | . . . . . . Time . | . . . . . . Parts Recycled . | . . . . . . Recycled Matter . | . . . . . . Retrieved Matter . | . . . . . . Retrieved Components . | . . . . . . Parts Scanalyzed . | . . . . . . Part Schematics Acquired . | . . . . . . Parts Damaged . | . . . . . . Bothacking | -11 -10 -10 -10 -9 -9 ------------ Run | Yrd Mat Min Sub Rec Scr Used RIF Installer . | . . . . . . Robots Hacked . | . . . . . . Non-combat . | . . . . . . Combat . | . . . . . . Robot Hacks Applied . | . . . . . . Relay Couplers Released . | . . . . . . Fabnet Peak Effective % . | . . . . . . Robots Rewired . | . . . . . . Allies Hacked . | . . . . . . Hacks Repelled . | . . . . . . Allies | -11 -10 -10 -10 -9 -9 -------- Run | Yrd Mat Min Sub Rec Scr Total Allies . | . . . . . . Largest Group . | . . . . . . Highest-Rated Group . | . . . . . . Highest-Rated Ally . | . . . . . . Total Orders . | . . . . . . Ally Attacks . | . . . . . . Total Damage . | . . . . . . Kills . | . . . . . . Allies Corrupted . | . . . . . . Allies Melted . | . . . . . . Intel | -11 -10 -10 -10 -9 -9 ------- Run | Yrd Mat Min Sub Rec Scr Robot Analysis Total 1 | . . . . 1 . Derelict Logs Recovered 3 | . . 1 . . 2 Drone Launches . | . . . . . . Drone Recoveries . | . . . . . . Exploration | -11 -10 -10 -10 -9 -9 ------------- Run | Yrd Mat Min Sub Rec Scr Turns Passed 8525 | 113 333 1300 903 1711 4165 Spaces Moved 2862 | 64 231 523 420 599 1025 Core 9 | 9 . . . . . Treads 2567 | . . 523 420 599 1025 Legs 286 | 55 231 . . . . Wheels . | . . . . . . Hover . | . . . . . . Flight . | . . . . . . Fastest Speed 50 | 50 120 160 160 240 400 Average Speed 270 | 110 120 160 203 266 400 Slowest Speed 400 | 120 120 240 240 400 400 Overloaded Moves . | . . . . . . Propulsion Burnouts . | . . . . . . Robots Hopped . | . . . . . . Cave-ins Triggered . | . . . . . . Exploration Rate (%) 52 | 6 30 94 31 79 73 Regions Visited 5 Branch Regions 4 Pre-discovered Areas 3 | . . 1 1 . 1 Known Exits Taken . | . . . . . . Unknown Exits Taken 5 | 1 1 1 1 1 . Scrap Searched 3 | . . . . . 3 Spaces Dug 9 | . . . . 9 . Terrain Destroyed 10 | . . . . 9 1 Melee . | . . . . . . Projectile 1 | . . . . . 1 AOE 9 | . . . . 9 . Terrain Rammed . | . . . . . . Walls Destroyed . | . . . . . . Machines Disabled . | . . . . . . Actions | -11 -10 -10 -10 -9 -9 --------- Run | Yrd Mat Min Sub Rec Scr Total 3548 | 89 265 955 449 706 1084 Wait 500 | 1 12 390 4 71 22 Move 2857 | 63 230 522 419 598 1025 Hop . | . . . . . . Pick Up 67 | 10 6 6 11 24 10 Fast Attach 4 | 3 . 1 . . . Attach 12 | 4 . 3 2 1 2 Detach 2 | . . . . . 2 Swap 14 | . 3 7 1 1 2 Drop 25 | . 3 8 2 2 10 Fire 63 | 8 11 16 10 9 9 Melee 2 | . . . . . 2 Ram . | . . . . . . Kick . | . . . . . . Crush 2 | . . 2 . . . Escape Stasis . | . . . . . . Rewire . | . . . . . . Trap . | . . . . . . Miscellaneous . | . . . . . . Route ------- -11/Scrapyard -10/Materials -10/Mines (discovered 3 exits: [*Mat x2] / [*Sub]) -10/Subcaves -9/Recycling (discovered 2 exits: [*Fac] / *Scr) -9/Scraptown (discovered 1 exit: [*Fac]) History --------- Turn | Location | Event 23 | -11/Scrapyard | Discovered new exit (range 15) 114 | -11/Scrapyard | Entered Materials 293 | -10/Materials | Discovered new exit (range 7) 313 | -10/Materials | Build established: Mutant 447 | -10/Materials | Entered Mines 457 | -10/Mines | Met a Derelict bent on vengeance 548 | -10/Mines | Met a Derelict who couldn't figure out how to use a Trap Extractor 772 | -10/Mines | Discovered new exit (range 5) 1036 | -10/Mines | Learned location of Storage (-9) 1078 | -10/Mines | Found a hidden stash of uninstalled traps 1312 | -10/Mines | Discovered new exit (range 15) 1720 | -10/Mines | Discovered new exit (range 6) 1747 | -10/Mines | Entered Subcaves 1772 | -10/Subcaves | A swath of the cavern ceiling suddenly collapsed 1821 | -10/Subcaves | Curiously followed by a Cobbler waking with a query about "LVR3C" 2244 | -10/Subcaves | Core integrity fell below 50% 2561 | -10/Subcaves | Learned location of Zion (-6) 2561 | -10/Subcaves | Met a Zionite searching for "candidates" 2616 | -10/Subcaves | Discovered new exit (range 15) 2650 | -10/Subcaves | Entered Recycling 3137 | -9/Recycling | Scanned before Scraplab entrance 4089 | -9/Recycling | Discovered new exit (range 9) 4233 | -9/Recycling | Build established: Hauler-Mutant 4297 | -9/Recycling | Entered Scraplab 4329 | -9/Recycling | Discovered new exit (range 3) 4361 | -9/Recycling | Entered Scraptown 5452 | -9/Scraptown | Scanned Subdweller tech in exchange for log data 5460 | -9/Scraptown | Learned Research terminal intel 5464 | -9/Scraptown | Learned location of Armory (-4) 5540 | -9/Scraptown | Discovered new exit (range 11) 5956 | -9/Scraptown | Visited Red Mages 6180 | -9/Scraptown | Visited Fellowship of the Rings 6252 | -9/Scraptown | Visited TADAMA 6428 | -9/Scraptown | Visited Shadow of the Wyrm 7343 | -9/Scraptown | Visited UFD Registry 7343 | -9/Scraptown | Registered with UFD as "Arcface" 7499 | -9/Scraptown | Visited Curators Association 7663 | -9/Scraptown | Visited LU-1G1's Boring Crew 7992 | -9/Scraptown | Visited Sword Containment 8135 | -9/Scraptown | Visited Junk Repository 8305 | -9/Scraptown | Visited Junk Cannon Lab 8343 | -9/Scraptown | Found Prototype Special Weapon 8423 | -9/Scraptown | Identified Junk Cannon 8480 | -9/Scraptown | Attacked by Scraptown defenders 8502 | -9/Scraptown | Core integrity fell below 20% 8526 | -9/Scraptown | Destroyed by V0-SNU(g) with Salvaging Laser Last Messages --------------- 08508_ CK-LPJ(r) system corrupted by crushing effect. 08510_ YJ-07F(r) follow-up attacks with Ripteeth. 08510_ Destroyed Ripteeth. 08510_ CK-LPJ(r) system corrupted by crushing effect. 08510_ CK-LPJ(r) knocked back. 08511_ CK-LPJ(r) system terminally corrupted. 08511_ Wheel fried. 08511_ YJ-07F(r) follow-up attacks with Ripteeth. 08521_ Dropped Junk Cannon. 08521_ YJ-07F(r) follow-up attacks with Ripteeth. 08523_ Destroyed Wheel. 08526_ YJ-07F(r) follow-up attacks with Ripteeth. 08526_ Ion Engine ripped off. [Achievement: This Is Interesting...] Map ----- +----------------------------------------------------+ | ?????????????????????????????????????????????????? | | ?????????????????????????????????????????????????? | | ?????????????????????????????????????????????????? | | ?????????????????????????????????????????????????? | | ?????????????????????????????????????????????????? | | ?????????????????????????????????????????????????? | | ?????????????????????????????????????????????????? | | ????????###########? ?????#######???????????????? | | ######### #? ?????#""""""#??????????????? | | # ## #? ?????#""""""#??????????????? | | """ # ## ## ?????#" ""#??????????????? | | "#" # ## ## #????#" ""#??????????????? | | """ # ## ## #????#" ""#??????????????? | | ## ## #????#" ""#??????????????? | | ###### ###### ###### #????#" "#??????????????? | | # #?###X ####?# ##"###"]["""#??????????????? | | # #?# #?# # [ #??????????????? | | # #?# #?# # #??????????????? | | #?# #?# # #??????????????? | | ## #####?##### ###?# ## ##########??????????????? | | ## ########### ##### ## #########???????????????? | | "" """"""""""" """"" E"" "## &= #???????????????? | | % "## & !#???????????????? | | t "## ####???????????????? | | "## #???????????????? | | @;# #???????????????? | | [% r!% #???????????????? | | """""""""""""""""""" ## ####???????????????? | | """"""""""""""""""""!!* g ;# #???????????????? | | ################""=%= ## #???????????????? | | ??????????????#"" [! "#####"##???????????????? | | ?????????????#"" "#????"""???????????????? | | "" ????????????#"" "#????? " "?????????????? | | ??????????????#"" "#?????? ????????????? | | ??????????????#"" "#??????? ????????????? | | "???????????????? ????????? ?????????????? | | "???????????????? "?????????? ????????????? | | ?????????????????#"" "???????????????????????? | | ??????????????????"" ????????????????????????? | | ???????????????????" ????????????????????????? | | ???????????????????? ????????????????????????? | | ?????????????????????? ????????????????????????? | | ?????????????????????????????????????????????????? | | ?????????????????????????????????????????????????? | | ?????????????????????????????????????????????????? | | ?????????????????????????????????????????????????? | | ?????????????????????????????????????????????????? | | ????????????????????????????????????????????????? | | ?????????????????????????????????????????????????? | | ????????????????????????????????????????????????? | +----------------------------------------------------+ Best States ------------- Heat Dissipation 25 Energy Generation 14 Energy Capacity 250 Matter Stores 300 Matter Capacity 300 Sight Range 16 Terrain Scan Range 16 Terrain Scan Density 10 Core Shielding 20 Evasion (%) 55 Recoil Reduction 2 Trap Extractor Capacity 6 Item Schematics ----------------- Lgt. Nuclear Core | -9/Recycling | Hacked Com. Matter Pod | -9/Recycling | Hacked Robot Schematics ------------------ None Fabricated ------------ Nothing Alien Tech Used ----------------- None Achievements -------------- Packrat This Is Interesting... Challenges ------------ None Game ------ Seed SuperchargedVortexBlaster Manual? 0 Play Time 00:41:16 Cumulative 22.6 hours Start 2024.10.23 @ 17:57:30 End 2024.10.23 @ 20:05:00 Sessions 3 Manual Loads 0 Difficulty Rogue Special Mode None Game No. 54 Rogue 54 Adventurer 0 Explorer 0 Win Type - Total 0 Types 0/0/0/0/0/0/0/0/0 Lore% 25 Gallery% 29 Achievement% 28 Wizard Run 0 Options --------- Layout 1 ASCII 0 Keyboard 0 Movement Mouse Keybinds 0 Fullscreen 1 Font 24/Smallcaps Map View 50x35 Zoom Use 0% Tactical HUD 1 Map Filters NONE Filters NONE Steam 1 RUN: 3012bd1f-ab43-45f2-8b13-62512d0e7005